[Event "GER-chT Youth Countries 2020"]
[Site "Berlin"]
[Date "2020.09.30"]
[Round "1"]
[White "Roseneck, Jonas"]
[Black "Richter, Nils"]
[Result "1-0"]
[ECO "B12"]
[WhiteElo "2417"]
[BlackElo "2307"]
[Annotator "ChessBase"]
[PlyCount "34"]
[EventDate "2020.09.30"]
[EventType "team-tourn"]
[EventRounds "7"]
[EventCountry "GER"]
[SourceTitle "playchess.com"]
[Source "ChessBase"]
[SourceQuality "1"]
[WhiteTeam "Sachsen-Anhalt"]
[BlackTeam "Württemberg"]
[TimeControl "30/5400+30:0"]

1. e4 {[%emt 0:00:00]} c6 {[%emt 0:00:00]} 2. d4 {[%emt 0:00:00]} d5 {[%emt 0:00:00]} 3. e5 {[%emt 0:00:00]} Bf5 {[%emt 0:00:01]} 4. h4 {[%emt 0:00:00]} h5 {[%emt 0:00:15]} 5. Bd3 {[%emt 0:01:54]} Bxd3 {[%emt 0:00:12]} 6. Qxd3 {[%emt 0:00:04]} e6 {[%emt 0:00:12]} 7. Bg5 {[%emt 0:00:04]} Qb6 {[%emt 0:01:06]} 8. Nd2 {[%emt 0:01:00]} c5 {[%emt 0:01:03]} 9. c4 {[%emt 0:02:04]} Qxb2 {[%emt 0:00:32]} 10. Rd1 {[%emt 0:01:15]} Nc6 {[%emt 0:00:50]} 11. Ngf3 {[%emt 0:02:42]} Nb4 {[%emt 0:00:23]} 12. Qe2 {[%emt 0:01:24]} cxd4 {[%emt 0:00:15]} 13. O-O {[%emt 0:05:01]} d3 {[%emt 0:00:31]} 14. Qe3 {[%emt 0:01:36]} Qa3 {[%emt 0:00:09]} 15. Rb1 {[%emt 0:04:22]} Nh6 {[%emt 0:01:40]} 16. Bxh6 {[%emt 0:01:17]} Rxh6 {[%emt 0:00:10]} 17. Rb3 {[%emt 0:02:12]} Qa6 {[%emt 0:00:23]} 1-0

[Event "GER-chT Youth Countries 2020"]
[Site "Berlin"]
[Date "2020.09.30"]
[Round "1"]
[White "Schmider, Niklas"]
[Black "Schneider, Jana"]
[Result "1-0"]
[ECO "B90"]
[WhiteElo "2291"]
[BlackElo "2270"]
[Annotator "ChessBase"]
[PlyCount "28"]
[EventDate "2020.09.30"]
[EventType "team-tourn"]
[EventRounds "7"]
[EventCountry "GER"]
[SourceTitle "playchess.com"]
[Source "ChessBase"]
[SourceQuality "1"]
[WhiteTeam "Baden"]
[BlackTeam "Bayern"]
[TimeControl "30/5400+30:0"]

1. e4 {[%emt 0:00:00]} c5 {[%emt 0:00:00]} 2. Nf3 {[%emt 0:00:00]} d6 {[%emt 0:00:00]} 3. d4 {[%emt 0:00:00]} cxd4 {[%emt 0:00:00]} 4. Nxd4 {[%emt 0:00:00]} Nf6 {[%emt 0:00:00]} 5. Nc3 {[%emt 0:00:04]} a6 {[%emt 0:00:01]} 6. h4 {[%emt 0:00:04]} e5 {[%emt 0:00:09]} 7. Nb3 {[%emt 0:00:11]} b5 {[%emt 0:00:58]} 8. Bg5 {[%emt 0:01:34]} Be7 {[%emt 0:01:40]} 9. Bxf6 {[%emt 0:01:46]} Bxf6 {[%emt 0:00:05]} 10. Qd3 {[%emt 0:04:20]} Bxh4 {[%emt 0:04:04]} 11. g3 {[%emt 0:03:48]} Bg5 {[%emt 0:02:06]} 12. Rd1 {[%emt 0:01:45]} Be7 {[%emt 0:01:30]} 13. Nd5 {[%emt 0:01:30]} Be6 {[%emt 0:00:13]} 14. Nxe7 {[%emt 0:04:18]} Kxe7 {[%emt 0:02:15]} 1-0

[Event "GER-chT Youth Countries 2020"]
[Site "Berlin"]
[Date "2020.09.30"]
[Round "1"]
[White "Kölle, Tobias"]
[Black "Pallas, Sebastian"]
[Result "1/2-1/2"]
[ECO "D85"]
[WhiteElo "2275"]
[BlackElo "2315"]
[Annotator "ChessBase"]
[PlyCount "24"]
[EventDate "2020.09.30"]
[EventType "team-tourn"]
[EventRounds "7"]
[EventCountry "GER"]
[SourceTitle "playchess.com"]
[Source "ChessBase"]
[SourceQuality "1"]
[WhiteTeam "Württemberg"]
[BlackTeam "Sachsen-Anhalt"]
[TimeControl "30/5400+30:0"]

1. d4 {[%emt 0:00:00]} Nf6 {[%emt 0:00:00]} 2. c4 {[%emt 0:00:00]} g6 {[%emt 0:00:18]} 3. Nc3 {[%emt 0:00:00]} d5 {[%emt 0:00:47]} 4. cxd5 {[%emt 0:00:00]} Nxd5 {[%emt 0:00:16]} 5. e4 {[%emt 0:00:00]} Nxc3 {[%emt 0:01:50]} 6. bxc3 {[%emt 0:00:00]} Bg7 {[%emt 0:01:01]} 7. Nf3 {[%emt 0:00:35]} O-O {[%emt 0:02:28]} 8. Be3 {[%emt 0:00:22]} c5 {[%emt 0:02:05]} 9. Qd2 {[%emt 0:00:10]} Qa5 {[%emt 0:02:48]} 10. Rc1 {[%emt 0:01:28]} cxd4 {[%emt 0:03:56]} 11. cxd4 {[%emt 0:00:03]} Qxd2+ {[%emt 0:01:51]} 12. Kxd2 {[%emt 0:00:02]} Rd8 {[%emt 0:06:01]} 1/2-1/2

[Event "GER-chT Youth Countries 2020"]
[Site "Berlin"]
[Date "2020.09.30"]
[Round "1"]
[White "Knüdel, Torben"]
[Black "Popvasilev, Kaloyan"]
[Result "1/2-1/2"]
[ECO "D11"]
[WhiteElo "2211"]
[BlackElo "2145"]
[Annotator "ChessBase"]
[PlyCount "99"]
[EventDate "2020.09.30"]
[EventType "team-tourn"]
[EventRounds "7"]
[EventCountry "GER"]
[SourceTitle "playchess.com"]
[Source "ChessBase"]
[SourceQuality "1"]
[WhiteTeam "Niedersachsen"]
[BlackTeam "Schleswig-Holstein"]
[TimeControl "30/5400+30:0"]

1. d4 {[%emt 0:00:00]} d5 {[%emt 0:00:00]} 2. c4 {[%emt 0:00:00]} c6 {[%emt 0:00:00]} 3. Nf3 {[%emt 0:00:01]} e6 {[%emt 0:00:00]} 4. e3 {[%emt 0:00:26]} f5 {[%emt 0:00:03]} 5. Bd3 {[%emt 0:00:36]} Bd6 {[%emt 0:00:11]} 6. O-O {[%emt 0:01:10]} Nf6 {[%emt 0:00:10]} 7. b3 {[%emt 0:00:09]} Qe7 {[%emt 0:00:14]} 8. Bb2 {[%emt 0:00:21]} O-O {[%emt 0:00:14]} 9. Nc3 {[%emt 0:00:26]} Nbd7 {[%emt 0:02:16]} 10. Rc1 {[%emt 0:03:37]} Ne4 {[%emt 0:01:45]} 11. Ne2 {[%emt 0:01:41]} Ndf6 {[%emt 0:13:27]} 12. Ne5 {[%emt 0:00:57]} Bd7 {[%emt 0:20:46]} 13. f3 {[%emt 0:19:11]} Ng5 {[%emt 0:00:20]} 14. Ng3 {[%emt 0:02:54]} c5 {[%emt 0:16:15]} 15. Qd2 {[%emt 0:20:08]} Nf7 {[%emt 0:13:43]} 16. Nxd7 {[%emt 0:02:27]} Qxd7 {[%emt 0:05:10]} 17. cxd5 {[%emt 0:00:38]} Bxg3 {[%emt 0:06:43]} 18. hxg3 {[%emt 0:04:40]} exd5 {[%emt 0:02:42]} 19. dxc5 {[%emt 0:03:06]} Qe6 {[%emt 0:05:53]} 20. Rfe1 {[%emt 0:07:43]} Ne5 {[%emt 0:04:12]} 21. Bb1 {[%emt 0:00:33]} Nh5 {[%emt 0:01:18]} 22. Qd4 {[%emt 0:00:12]} Nc6 {[%emt 0:02:58]} 23. Qh4 {[%emt 0:00:09]} Qh6 {[%emt 0:01:54]} 24. g4 {[%emt 0:05:31]} fxg4 {[%emt 0:00:11]} 25. Qxg4 {[%emt 0:00:14]} Rae8 {[%emt 0:00:17]} 26. Bd4 {[%emt 0:04:50]} Nxd4 {[%emt 0:00:55]} 27. Qxd4 {[%emt 0:01:04]} Kh8 {[%emt 0:00:17]} 28. Kf2 {[%emt 0:07:24]} Nf6 {[%emt 0:00:08]} 29. Rh1 {[%emt 0:02:14]} Qg5 {[%emt 0:01:16]} 30. Rce1 {[%emt 0:01:15]} h6 {[%emt 0:00:56]} 31. Kg1 {[%emt 1:31:13]} Qg3 {[%emt 1:30:41]} 32. Qh4 {[%emt 0:00:25]} Qe5 {[%emt 0:00:01]} 33. Qf2 {[%emt 0:03:26]} d4 {[%emt 0:00:46]} 34. e4 {[%emt 0:00:01]} Qxc5 {[%emt 0:00:13]} 35. Rh4 {[%emt 0:01:38]} Qg5 {[%emt 0:00:59]} 36. Rh3 {[%emt 0:01:18]} Qc5 {[%emt 0:00:30]} 37. Rh4 {[%emt 0:03:31]} Qe5 {[%emt 0:00:34]} 38. Rd1 {[%emt 0:00:50]} Rd8 {[%emt 0:00:28]} 39. f4 {[%emt 0:01:27]} Qc5 {[%emt 0:00:32]} 40. e5 {[%emt 0:01:00]} Nd5 {[%emt 0:00:30]} 41. Qxd4 {[%emt 0:01:30]} Qxd4+ {[%emt 0:00:00]} 42. Rxd4 {[%emt 0:00:00]} Ne7 {[%emt 0:00:00]} 43. Rxd8 {[%emt 0:00:00]} Rxd8 {[%emt 0:00:00]} 44. Kf2 {[%emt 0:00:00]} Rd1 {[%emt 0:00:00]} 45. Be4 {[%emt 0:00:00]} Rd2+ {[%emt 0:00:00]} 46. Ke3 {[%emt 0:00:00]} Rxa2 {[%emt 0:00:00]} 47. f5 {[%emt 0:00:00]} Ng8 {[%emt 0:00:00]} 48. Bxb7 {[%emt 0:00:00]} Rb2 {[%emt 0:00:00]} 49. Rb4 {[%emt 0:00:00]} a5 {[%emt 0:00:00]} 50. Rb5 {[%emt 0:00:00]} 1/2-1/2

[Event "GER-chT Youth Countries 2020"]
[Site "Berlin"]
[Date "2020.09.30"]
[Round "1"]
[White "Payyappat, Sreyas"]
[Black "Farokhi, Keyvan"]
[Result "1/2-1/2"]
[ECO "B23"]
[WhiteElo "2163"]
[BlackElo "2001"]
[Annotator "ChessBase"]
[PlyCount "70"]
[EventDate "2020.09.30"]
[EventType "team-tourn"]
[EventRounds "7"]
[EventCountry "GER"]
[SourceTitle "playchess.com"]
[Source "ChessBase"]
[SourceQuality "1"]
[WhiteTeam "Niedersachsen"]
[BlackTeam "Schleswig-Holstein"]
[TimeControl "30/5400+30:0"]

1. e4 {[%emt 0:00:00]} c5 {[%emt 0:00:00]} 2. Nc3 {[%emt 0:00:00]} e6 {[%emt 0:00:00]} 3. Nf3 {[%emt 0:00:05]} a6 {[%emt 0:00:00]} 4. g3 {[%emt 0:01:26]} Nc6 {[%emt 0:00:53]} 5. Bg2 {[%emt 0:00:13]} Qc7 {[%emt 0:00:20]} 6. O-O {[%emt 0:00:17]} b5 {[%emt 0:00:16]} 7. d3 {[%emt 0:03:30]} Bb7 {[%emt 0:02:21]} 8. Ng5 {[%emt 0:02:35]} h6 {[%emt 0:07:52]} 9. Nh3 {[%emt 0:01:49]} Nf6 {[%emt 0:00:51]} 10. f4 {[%emt 0:02:37]} Be7 {[%emt 0:07:23]} 11. Be3 {[%emt 0:12:39]} O-O {[%emt 0:12:06]} 12. g4 {[%emt 0:02:47]} Nh7 {[%emt 0:21:20]} 13. g5 {[%emt 0:04:47]} hxg5 {[%emt 0:00:07]} 14. fxg5 {[%emt 0:04:50]} Ne5 {[%emt 0:01:24]} 15. Qh5 {[%emt 0:05:49]} Ng6 {[%emt 0:00:27]} 16. Rf3 {[%emt 0:04:31]} Qe5 {[%emt 0:05:44]} 17. Rg3 {[%emt 0:03:40]} Nf6 {[%emt 0:11:21]} 18. Qe2 {[%emt 0:01:04]} Nh7 {[%emt 0:00:04]} 19. Rd1 {[%emt 0:05:31]} Rac8 {[%emt 0:08:55]} 20. Rf1 {[%emt 0:02:36]} Ba8 {[%emt 0:03:05]} 21. Kh1 {[%emt 0:02:57]} d5 {[%emt 0:01:59]} 22. Bc1 {[%emt 0:03:12]} b4 {[%emt 0:05:12]} 23. Nd1 {[%emt 0:00:34]} dxe4 {[%emt 0:01:33]} 24. dxe4 {[%emt 0:00:12]} Bc6 {[%emt 0:00:05]} 25. c4 {[%emt 0:06:19]} Bd6 {[%emt 0:01:07]} 26. b3 {[%emt 0:02:04]} Bb8 {[%emt 0:01:35]} 27. Bb2 {[%emt 0:00:40]} Qc7 {[%emt 0:00:43]} 28. Qh5 {[%emt 0:04:49]} Qe7 {[%emt 0:02:34]} 29. Nf4 {[%emt 0:07:06]} Bxf4 {[%emt 0:00:14]} 30. Rh3 {[%emt 0:11:12]} Nxg5 {[%emt 0:00:05]} 31. Rxf4 {[%emt 1:30:14]} Nxh3 {[%emt 1:30:16]} 32. Rf3 {[%emt 0:00:19]} Nhf4 {[%emt 0:01:06]} 33. Qg4 {[%emt 0:00:36]} e5 {[%emt 0:00:26]} 34. Rg3 {[%emt 0:00:46]} Qd7 {[%emt 0:01:35]} 35. Qf3 {[%emt 0:00:38]} Bxe4 {[%emt 0:00:27]} 1/2-1/2

[Event "GER-chT Youth Countries 2020"]
[Site "Berlin"]
[Date "2020.09.30"]
[Round "1"]
[White "Deuer, Marius"]
[Black "Pikalow, Michael"]
[Result "1-0"]
[ECO "B33"]
[WhiteElo "2161"]
[BlackElo "2021"]
[Annotator "ChessBase"]
[PlyCount "32"]
[EventDate "2020.09.30"]
[EventType "team-tourn"]
[EventRounds "7"]
[EventCountry "GER"]
[SourceTitle "playchess.com"]
[Source "ChessBase"]
[SourceQuality "1"]
[WhiteTeam "Württemberg"]
[BlackTeam "Sachsen-Anhalt"]
[TimeControl "30/5400+30:0"]

1. e4 {[%emt 0:00:00]} c5 {[%emt 0:00:00]} 2. Nf3 {[%emt 0:00:00]} Nc6 {[%emt 0:00:00]} 3. d4 {[%emt 0:00:00]} cxd4 {[%emt 0:00:01]} 4. Nxd4 {[%emt 0:00:04]} Nf6 {[%emt 0:00:08]} 5. Nc3 {[%emt 0:00:09]} e5 {[%emt 0:00:08]} 6. Ndb5 {[%emt 0:00:10]} d6 {[%emt 0:00:12]} 7. Bg5 {[%emt 0:00:27]} a6 {[%emt 0:00:41]} 8. Na3 {[%emt 0:00:07]} b5 {[%emt 0:00:08]} 9. Nd5 {[%emt 0:00:38]} Be7 {[%emt 0:00:21]} 10. Bxf6 {[%emt 0:00:29]} Bxf6 {[%emt 0:00:14]} 11. c3 {[%emt 0:00:11]} O-O {[%emt 0:01:07]} 12. Nc2 {[%emt 0:01:48]} Bg5 {[%emt 0:00:45]} 13. h4 {[%emt 0:01:30]} Bh6 {[%emt 0:00:23]} 14. Nce3 {[%emt 0:04:34]} Ne7 {[%emt 0:06:25]} 15. Nxe7+ {[%emt 0:04:38]} Qxe7 {[%emt 0:00:30]} 16. Nd5 {[%emt 0:00:31]} Qd8 {[%emt 0:01:19]} 1-0

[Event "GER-chT Youth Countries 2020"]
[Site "Berlin"]
[Date "2020.09.30"]
[Round "1"]
[White "Khachatryan, Taron"]
[Black "Stelmaszyk, Nico"]
[Result "0-1"]
[ECO "C55"]
[WhiteElo "2136"]
[BlackElo "2301"]
[Annotator "ChessBase"]
[PlyCount "95"]
[EventDate "2020.09.30"]
[EventType "team-tourn"]
[EventRounds "7"]
[EventCountry "GER"]
[SourceTitle "playchess.com"]
[Source "ChessBase"]
[SourceQuality "1"]
[WhiteTeam "Schleswig-Holstein"]
[BlackTeam "Niedersachsen"]
[TimeControl "30/5400+30:0"]

1. e4 {[%emt 0:00:00]} e5 {[%emt 0:00:00]} 2. Nf3 {[%emt 0:00:00]} Nc6 {[%emt 0:00:00]} 3. Bc4 {[%emt 0:00:34]} Nf6 {[%emt 0:00:00]} 4. d3 {[%emt 0:00:30]} Be7 {[%emt 0:00:09]} 5. O-O {[%emt 0:00:11]} O-O {[%emt 0:00:05]} 6. Re1 {[%emt 0:00:04]} d6 {[%emt 0:00:13]} 7. a4 {[%emt 0:00:06]} h6 {[%emt 0:00:27]} 8. a5 {[%emt 0:00:56]} a6 {[%emt 0:00:05]} 9. c3 {[%emt 0:00:04]} Nh7 {[%emt 0:00:41]} 10. d4 {[%emt 0:00:08]} Bg4 {[%emt 0:07:18]} 11. d5 {[%emt 0:10:21]} Nb8 {[%emt 0:01:21]} 12. h3 {[%emt 0:00:51]} Bh5 {[%emt 0:00:38]} 13. Be2 {[%emt 0:01:09]} Bg6 {[%emt 0:06:56]} 14. Bd3 {[%emt 0:02:47]} Ng5 {[%emt 0:01:20]} 15. c4 {[%emt 0:01:53]} c5 {[%emt 0:09:48]} 16. Nc3 {[%emt 0:18:46]} Nxf3+ {[%emt 0:07:50]} 17. Qxf3 {[%emt 0:00:11]} Bg5 {[%emt 0:00:14]} 18. Ne2 {[%emt 0:07:24]} Nd7 {[%emt 0:11:07]} 19. Ng3 {[%emt 0:02:08]} Qf6 {[%emt 0:18:53]} 20. Qg4 {[%emt 0:06:15]} Rfd8 {[%emt 0:00:53]} 21. Bc2 {[%emt 0:02:44]} Rab8 {[%emt 0:05:46]} 22. Ra3 {[%emt 0:10:23]} Bxc1 {[%emt 0:01:24]} 23. Rxc1 {[%emt 0:00:04]} Qg5 {[%emt 0:00:50]} 24. Qxg5 {[%emt 0:03:00]} hxg5 {[%emt 0:00:06]} 25. Rb1 {[%emt 0:00:03]} Rdc8 {[%emt 0:05:35]} 26. Bd1 {[%emt 0:05:20]} Rc7 {[%emt 0:04:51]} 27. Bg4 {[%emt 0:02:08]} Nf6 {[%emt 0:00:43]} 28. f3 {[%emt 0:00:13]} b5 {[%emt 0:02:36]} 29. axb6 {[%emt 0:00:16]} Rxb6 {[%emt 0:00:05]} 30. b3 {[%emt 0:04:06]} Ne8 {[%emt 0:01:37]} 31. Rba1 {[%emt 1:31:45]} Ra7 {[%emt 1:30:48]} 32. Bf5 {[%emt 0:03:46]} Bxf5 {[%emt 0:02:09]} 33. Nxf5 {[%emt 0:00:05]} g6 {[%emt 0:00:18]} 34. Ne3 {[%emt 0:00:10]} Nc7 {[%emt 0:00:49]} 35. Nd1 {[%emt 0:08:45]} Rab7 {[%emt 0:00:35]} 36. Rb1 {[%emt 0:00:07]} Rb4 {[%emt 0:00:29]} 37. Kf1 {[%emt 0:01:57]} Rxc4 {[%emt 0:01:16]} 38. Ne3 {[%emt 0:05:28]} Rcb4 {[%emt 0:00:37]} 39. Nc2 {[%emt 0:00:09]} R4b5 {[%emt 0:04:56]} 40. Ne3 {[%emt 0:00:18]} Kf8 {[%emt 0:01:56]} 41. Nc4 {[%emt 0:00:00]} Ke7 {[%emt 0:00:00]} 42. Na5 {[%emt 0:00:00]} R7b6 {[%emt 0:00:00]} 43. Ke2 {[%emt 0:00:00]} Kd7 {[%emt 0:00:00]} 44. Kd3 {[%emt 0:00:00]} Rb4 {[%emt 0:00:00]} 45. Nc6 {[%emt 0:00:00]} c4+ {[%emt 0:00:00]} 46. Kc2 {[%emt 0:00:00]} cxb3+ {[%emt 0:00:00]} 47. Rbxb3 {[%emt 0:00:00]} R4b5 {[%emt 0:00:00]} 48. Na7 {[%emt 0:00:00]} 0-1

[Event "GER-chT Youth Countries 2020"]
[Site "Berlin"]
[Date "2020.09.30"]
[Round "1"]
[White "Müdder, Melanie"]
[Black "Halabi, Ibrahim"]
[Result "0-1"]
[ECO "B90"]
[WhiteElo "2039"]
[BlackElo "1895"]
[Annotator "ChessBase"]
[PlyCount "20"]
[EventDate "2020.09.30"]
[EventType "team-tourn"]
[EventRounds "7"]
[EventCountry "GER"]
[SourceTitle "playchess.com"]
[Source "ChessBase"]
[SourceQuality "1"]
[WhiteTeam "Nordrhein-Westfalen"]
[BlackTeam "Rheinland-Pfalz"]
[TimeControl "30/5400+30:0"]

1. e4 {[%emt 0:00:00]} c5 {[%emt 0:00:00]} 2. Nf3 {[%emt 0:00:00]} d6 {[%emt 0:00:00]} 3. d4 {[%emt 0:00:00]} cxd4 {[%emt 0:00:00]} 4. Nxd4 {[%emt 0:00:04]} Nf6 {[%emt 0:00:00]} 5. Nc3 {[%emt 0:00:11]} a6 {[%emt 0:00:05]} 6. h3 {[%emt 0:00:19]} e5 {[%emt 0:00:26]} 7. Nb3 {[%emt 0:00:11]} h5 {[%emt 0:00:33]} 8. Bg5 {[%emt 0:00:09]} Be6 {[%emt 0:00:06]} 9. f4 {[%emt 0:01:50]} exf4 {[%emt 0:03:43]} 10. Qd2 {[%emt 0:03:43]} Nc6 {[%emt 0:15:05]} 0-1

[Event "GER-chT Youth Countries 2020"]
[Site "Berlin"]
[Date "2020.09.30"]
[Round "1"]
[White "Mönster, Madita"]
[Black "Sommer, Justus"]
[Result "1-0"]
[ECO "A40"]
[WhiteElo "1918"]
[BlackElo "1845"]
[Annotator "ChessBase"]
[PlyCount "99"]
[EventDate "2020.09.30"]
[EventType "team-tourn"]
[EventRounds "7"]
[EventCountry "GER"]
[SourceTitle "playchess.com"]
[Source "ChessBase"]
[SourceQuality "1"]
[WhiteTeam "Niedersachsen"]
[BlackTeam "Schleswig-Holstein"]
[TimeControl "30/5400+30:0"]

1. d4 e6 2. Bf4 d5 3. e3 Nf6 4. Nd2 {[%emt 0:02:51]} c5 {[%emt 0:03:16]} 5. c3 {[%emt 0:01:06]} Bd6 {[%emt 0:01:35]} 6. Bg3 {[%emt 0:02:19]} Nc6 {[%emt 0:05:11]} 7. Ngf3 {[%emt 0:03:16]} O-O {[%emt 0:05:07]} 8. Bd3 {[%emt 0:04:35]} b6 {[%emt 0:03:35]} 9. dxc5 {[%emt 0:11:12]} bxc5 {[%emt 0:02:25]} 10. e4 {[%emt 0:03:12]} Qc7 {[%emt 0:13:19]} 11. Qe2 {[%emt 0:05:01]} Nd7 {[%emt 0:23:34]} 12. O-O {[%emt 0:14:04]} Nce5 {[%emt 0:06:38]} 13. Nxe5 {[%emt 0:06:20]} Nxe5 {[%emt 0:02:25]} 14. Rfe1 {[%emt 0:08:22]} Bb7 {[%emt 0:07:44]} 15. Bxe5 {[%emt 0:10:08]} Bxe5 {[%emt 0:00:57]} 16. exd5 {[%emt 0:00:41]} Bxh2+ {[%emt 0:06:16]} 17. Kh1 {[%emt 0:01:44]} Bd6 {[%emt 0:06:59]} 18. dxe6 {[%emt 0:06:03]} Rae8 {[%emt 0:06:21]} 19. exf7+ {[%emt 0:04:09]} Qxf7 {[%emt 0:00:36]} 20. Bc4 {[%emt 0:01:18]} Bd5 {[%emt 0:00:14]} 21. Bxd5 {[%emt 0:00:26]} Qxd5 {[%emt 0:00:03]} 22. Qc4 {[%emt 0:00:49]} Qxc4 {[%emt 0:02:12]} 23. Nxc4 {[%emt 0:00:10]} Bc7 {[%emt 0:00:12]} 24. Kg1 {[%emt 0:03:36]} Kf7 {[%emt 0:01:22]} 25. Kf1 {[%emt 0:01:46]} Re6 {[%emt 0:01:10]} 26. Rad1 {[%emt 0:02:49]} Rxe1+ {[%emt 0:00:46]} 27. Kxe1 {[%emt 0:01:43]} Ke6 {[%emt 0:00:48]} 28. Ke2 {[%emt 0:01:56]} Rd8 {[%emt 0:00:34]} 29. Rxd8 {[%emt 0:02:21]} Bxd8 {[%emt 0:00:02]} 30. Kd3 {[%emt 0:00:44]} h6 {[%emt 0:00:35]} 31. Ne3 {[%emt 1:31:02]} Bh4 {[%emt 1:30:40]} 32. g3 {[%emt 0:01:14]} Be7 {[%emt 0:00:26]} 33. f4 {[%emt 0:00:31]} a6 {[%emt 0:00:45]} 34. Ke4 {[%emt 0:00:38]} Bd6 {[%emt 0:00:32]} 35. g4 {[%emt 0:00:43]} g6 {[%emt 0:00:27]} 36. Nc4 {[%emt 0:00:30]} Bc7 {[%emt 0:00:24]} 37. a4 {[%emt 0:00:31]} Bb8 {[%emt 0:00:27]} 38. Ne3 {[%emt 0:00:35]} h5 {[%emt 0:00:34]} 39. gxh5 {[%emt 0:00:29]} gxh5 {[%emt 0:00:02]} 40. Nf5 {[%emt 0:00:19]} Kf6 {[%emt 0:00:38]} 41. b4 {[%emt 0:00:41]} cxb4 {[%emt 0:00:26]} 42. cxb4 {[%emt 0:00:01]} Bc7 {[%emt 0:00:43]} 43. b5 {[%emt 0:01:03]} axb5 {[%emt 0:00:30]} 44. axb5 {[%emt 0:00:01]} Bb6 {[%emt 0:00:32]} 45. Nh4 {[%emt 0:00:00]} Bc7 {[%emt 0:00:00]} 46. Nf5 {[%emt 0:00:00]} Bd8 {[%emt 0:00:00]} 47. Ne3 {[%emt 0:00:00]} Ke6 {[%emt 0:00:00]} 48. Nc4 {[%emt 0:00:00]} h4 {[%emt 0:00:00]} 49. b6 {[%emt 0:00:00]} h3 {[%emt 0:00:00]} 50. Kf3 {[%emt 0:00:00]} 1-0

[Event "GER-chT Youth Countries 2020"]
[Site "Berlin"]
[Date "2020.09.30"]
[Round "1"]
[White "Dietz, Kristin"]
[Black "Schwartz, Oliver"]
[Result "0-1"]
[ECO "C60"]
[WhiteElo "1913"]
[BlackElo "1794"]
[Annotator "ChessBase"]
[PlyCount "23"]
[EventDate "2020.09.30"]
[EventType "team-tourn"]
[EventRounds "7"]
[EventCountry "GER"]
[SourceTitle "playchess.com"]
[Source "ChessBase"]
[SourceQuality "1"]
[WhiteTeam "Sachsen-Anhalt"]
[BlackTeam "Württemberg"]
[TimeControl "30/5400+30:0"]

1. e4 {[%emt 0:00:00]} e5 {[%emt 0:00:00]} 2. Nf3 {[%emt 0:00:00]} Nc6 {[%emt 0:00:00]} 3. Bb5 {[%emt 0:00:00]} Nge7 {[%emt 0:00:10]} 4. O-O {[%emt 0:00:17]} g6 {[%emt 0:00:48]} 5. c3 {[%emt 0:00:34]} Bg7 {[%emt 0:00:26]} 6. Re1 {[%emt 0:02:49]} O-O {[%emt 0:01:16]} 7. d3 {[%emt 0:01:02]} d6 {[%emt 0:04:19]} 8. Be3 {[%emt 0:01:46]} Bd7 {[%emt 0:04:59]} 9. Ba4 {[%emt 0:01:10]} f5 {[%emt 0:05:03]} 10. Bb3+ {[%emt 0:00:28]} Kh8 {[%emt 0:00:11]} 11. Ng5 {[%emt 0:01:16]} Qe8 {[%emt 0:00:24]} 12. Be6 {[%emt 0:05:09]} 0-1

[Event "GER-chT Youth Countries 2020"]
[Site "Berlin"]
[Date "2020.09.30"]
[Round "1"]
[White "Ley, Sabrina"]
[Black "Bashylina, Luisa"]
[Result "1/2-1/2"]
[ECO "A50"]
[WhiteElo "1871"]
[BlackElo "2005"]
[Annotator "ChessBase"]
[PlyCount "26"]
[EventDate "2020.09.30"]
[EventType "team-tourn"]
[EventRounds "7"]
[EventCountry "GER"]
[SourceTitle "playchess.com"]
[Source "ChessBase"]
[SourceQuality "1"]
[WhiteTeam "Rheinland-Pfalz"]
[BlackTeam "Nordrhein-Westfalen"]
[TimeControl "30/5400+30:0"]

1. d4 {[%emt 0:00:00]} Nf6 {[%emt 0:00:00]} 2. c4 {[%emt 0:00:00]} g6 {[%emt 0:00:00]} 3. f3 {[%emt 0:00:00]} Bg7 {[%emt 0:00:00]} 4. e4 {[%emt 0:00:00]} d6 {[%emt 0:00:00]} 5. Be3 {[%emt 0:00:00]} O-O {[%emt 0:00:00]} 6. Ne2 {[%emt 0:00:00]} c5 {[%emt 0:00:44]} 7. d5 {[%emt 0:00:00]} e6 {[%emt 0:01:08]} 8. Nec3 {[%emt 0:00:07]} exd5 {[%emt 0:01:57]} 9. cxd5 {[%emt 0:00:07]} a6 {[%emt 0:01:11]} 10. a4 {[%emt 0:00:06]} Nbd7 {[%emt 0:04:07]} 11. Na3 {[%emt 0:00:52]} Ne5 {[%emt 0:03:15]} 12. Qd2 {[%emt 0:02:20]} Re8 {[%emt 0:01:29]} 13. Be2 {[%emt 0:01:01]} Qc7 {[%emt 0:08:34]} 1/2-1/2

[Event "GER-chT Youth Countries 2020"]
[Site "Berlin"]
[Date "2020.09.30"]
[Round "1"]
[White "Mundt, Alexandra"]
[Black "Hommer, Jeremy"]
[Result "0-1"]
[ECO "D46"]
[WhiteElo "1786"]
[BlackElo "2246"]
[Annotator "ChessBase"]
[PlyCount "60"]
[EventDate "2020.09.30"]
[EventType "team-tourn"]
[EventRounds "7"]
[EventCountry "GER"]
[SourceTitle "playchess.com"]
[Source "ChessBase"]
[SourceQuality "1"]
[WhiteTeam "Schleswig-Holstein"]
[BlackTeam "Niedersachsen"]
[TimeControl "30/5400+30:0"]

1. d4 d5 2. c4 c6 3. e3 Nf6 4. Nf3 e6 5. Nc3 Nbd7 6. Bd3 Bd6 7. O-O O-O 8. Qe2 Qe7 {[%emt 0:05:35]} 9. Rd1 {[%emt 0:06:40]} dxc4 {[%emt 0:07:02]} 10. Bxc4 {[%emt 0:00:08]} e5 {[%emt 0:01:07]} 11. d5 {[%emt 0:10:40]} e4 {[%emt 0:06:55]} 12. Ne1 {[%emt 0:11:29]} Ne5 {[%emt 0:03:29]} 13. h3 {[%emt 0:04:07]} b5 {[%emt 0:02:28]} 14. Bb3 {[%emt 0:03:51]} b4 {[%emt 0:02:14]} 15. Na4 {[%emt 0:01:55]} cxd5 {[%emt 0:01:14]} 16. Bxd5 {[%emt 0:02:47]} Nxd5 {[%emt 0:02:25]} 17. Rxd5 {[%emt 0:00:11]} Be6 {[%emt 0:01:55]} 18. Rd4 {[%emt 0:09:01]} f5 {[%emt 0:02:25]} 19. f4 {[%emt 0:09:50]} exf3 {[%emt 0:04:53]} 20. Nxf3 {[%emt 0:00:18]} Nxf3+ {[%emt 0:00:20]} 21. Qxf3 {[%emt 0:00:36]} Be5 {[%emt 0:01:22]} 22. Rd1 {[%emt 0:01:20]} Rac8 {[%emt 0:03:48]} 23. e4 {[%emt 0:05:10]} Qe8 {[%emt 0:03:45]} 24. exf5 {[%emt 0:05:08]} Qxa4 {[%emt 0:02:56]} 25. Qe2 {[%emt 0:01:29]} Bf7 {[%emt 0:02:39]} 26. Bg5 {[%emt 0:02:23]} Rfe8 {[%emt 0:02:18]} 27. Qf2 {[%emt 0:00:36]} Qc2 {[%emt 0:02:15]} 28. Rd2 {[%emt 0:00:57]} Qc1+ {[%emt 0:01:28]} 29. Rxc1 {[%emt 0:00:07]} Rxc1+ {[%emt 0:00:13]} 30. Qf1 {[%emt 0:00:01]} Bh2+ {[%emt 0:00:17]} 0-1